[Event "55th Rubinstein Memorial-A 2019"]
[Site "Polanica-Zdroj"]
[Date "2019.08.23"]
[Round "7.13"]
[White "Zych, Marek"]
[Black "Luba, Lukasz"]
[Result "0-1"]
[ECO "A55"]
[WhiteElo "2061"]
[BlackElo "2130"]
[Annotator "NA"]
[PlyCount "86"]
[EventDate "2019.08.17"]
[EventType "swiss"]
[EventCountry "POL"]
[SourceTitle "playchess.com"]
[Source "ChessBase"]
[SourceQuality "1"]
[TimeControl "40/5400+30:1800+30"]

1. Nf3 {[%emt 0:00:00]} d6 {[%emt 0:06:59]} 2. d4 {[%emt 0:00:00]} Nf6 {[%emt 0:00:37]} 3. c4 {[%emt 0:00:00]} Nbd7 {[%emt 0:00:39]} 4. Nc3 {[%emt 0:00:11]} e5 {[%emt 0:01:22]} 5. e4 {[%emt 0:00:10]} c6 {[%emt 0:00:47]} 6. Be2 {[%emt 0:00:16]} Qc7 {[%emt 0:00:25]} 7. O-O {[%emt 0:00:23]} Be7 {[%emt 0:00:30]} 8. Re1 {[%emt 0:00:53]} h6 {[%emt 0:01:06]} 9. Rb1 {[%emt 0:06:45]} a5 {[%emt 0:02:28]} 10. Qc2 {[%emt 0:03:39]} g5 {[%emt 0:01:06]} 11. d5 {[%emt 0:01:33]} c5 {[%emt 0:01:18]} 12. a3 {[%emt 0:00:43]} a4 {[%emt 0:01:14]} 13. b3 {[%emt 0:01:19]} axb3 {[%emt 0:01:15]} 14. Rxb3 {[%emt 0:00:30]} Nf8 {[%emt 0:00:10]} 15. Bd2 {[%emt 0:02:14]} Ng6 {[%emt 0:00:18]} 16. a4 {[%emt 0:01:17]} g4 {[%emt 0:00:21]} 17. Reb1 {[%emt 0:08:58]} gxf3 {[%emt 0:00:17]} 18. Bxf3 {[%emt 0:00:17]} Nh4 {[%emt 0:00:27]} 19. Nb5 {[%emt 0:01:19]} Qd7 {[%emt 0:01:35]} 20. Be2 {[%emt 0:03:18]} Rg8 {[%emt 0:05:04]} 21. Rg3 {[%emt 0:00:17]} Rg6 {[%emt 0:03:35]} 22. Rxg6 {[%emt 0:01:28]} Nxg6 {[%emt 0:08:28]} 23. Bxh6 {[%emt 0:02:13]} Nh7 {[%emt 0:04:57]} 24. Bg4 {[%emt 0:05:44]} Qd8 {[%emt 0:00:32]} 25. Bf5 {[%emt 0:00:39]} Bg5 {[%emt 0:02:03]} 26. Bxg5 {[%emt 0:02:38]} Nxg5 {[%emt 0:00:06]} 27. Bxg6 {[%emt 0:01:31]} fxg6 {[%emt 0:00:23]} 28. h4 {[%emt 0:02:10]} Nf7 {[%emt 0:00:15]} 29. g3 {[%emt 0:00:51]} Kf8 {[%emt 0:00:59]} 30. Nc3 {[%emt 0:00:51]} Kg7 {[%emt 0:03:31]} 31. f3 {[%emt 0:02:00]} g5 {[%emt 0:01:22]} 32. hxg5 {[%emt 0:01:14]} Qxg5 {[%emt 0:00:33]} 33. Qf2 {[%emt 0:00:20]} Qh6 {[%emt 0:03:00]} 34. g4 {[%emt 0:02:29]} Bd7 {[%emt 0:01:59]} 35. Kg2 {[%emt 0:00:44]} Rh8 {[%emt 0:00:12]} 36. Kf1 {[%emt 0:00:50]} Bc8 {[%emt 0:00:22]} 37. Ke2 {[%emt 0:01:14]} Qf4 {[%emt 0:05:44]} 38. Rg1 {[%emt 0:00:33]} Rh3 {[%emt 0:00:08]} 39. g5 {[%emt 0:03:18]} Kg6 {[%emt 0:03:58]} 40. Rg2 {[%emt 0:00:00]} Nxg5 {[%emt 0:00:00]} 41. Nb5 {[%emt 0:03:09]} Rxf3 {[%emt 0:01:46]} 42. Rxg5+ {[%emt 0:00:11]} Kxg5 {[%emt 0:00:05]} 43. Qxf3 {[%emt 0:00:02]} Bg4 {[%emt 0:00:06]} 0-1

[Event "55th Rubinstein Memorial-A 2019"]
[Site "Polanica-Zdroj"]
[Date "2019.08.23"]
[Round "7.14"]
[White "Betkowski, Andrzej"]
[Black "Shishkin, Vadim"]
[Result "0-1"]
[ECO "B26"]
[WhiteElo "2023"]
[BlackElo "2445"]
[Annotator "NA"]
[PlyCount "45"]
[EventDate "2019.08.17"]
[EventType "swiss"]
[EventCountry "POL"]
[SourceTitle "playchess.com"]
[Source "ChessBase"]
[SourceQuality "1"]
[TimeControl "40/5400+30:1800+30"]

1. e4 {[%emt 0:00:00]} c5 {[%emt 0:00:00]} 2. Nc3 {[%emt 0:00:00]} Nc6 {[%emt 0:00:00]} 3. g3 {[%emt 0:00:00]} g6 {[%emt 0:00:00]} 4. Bg2 {[%emt 0:00:09]} Bg7 {[%emt 0:00:00]} 5. d3 {[%emt 0:00:18]} d6 {[%emt 0:00:26]} 6. Be3 {[%emt 0:00:28]} e6 {[%emt 0:00:04]} 7. Qd2 {[%emt 0:00:36]} b6 {[%emt 0:02:58]} 8. Nge2 {[%emt 0:04:14]} Bb7 {[%emt 0:00:17]} 9. d4 {[%emt 0:07:04]} Nf6 {[%emt 0:02:40]} 10. h3 {[%emt 0:02:15]} e5 {[%emt 0:03:28]} 11. d5 {[%emt 0:16:53]} Nd4 {[%emt 0:00:25]} 12. f4 {[%emt 0:05:02]} Ba6 {[%emt 0:11:02]} 13. g4 {[%emt 0:10:24]} h5 {[%emt 0:07:55]} 14. fxe5 {[%emt 0:05:08]} dxe5 {[%emt 0:01:47]} 15. g5 {[%emt 0:01:26]} Nh7 {[%emt 0:00:32]} 16. Ng1 {[%emt 0:02:38]} f5 {[%emt 0:06:14]} 17. exf5 {[%emt 0:07:00]} gxf5 {[%emt 0:01:04]} 18. O-O-O {[%emt 0:01:09]} Nf8 {[%emt 0:01:15]} 19. Re1 {[%emt 0:02:58]} Ng6 {[%emt 0:11:00]} 20. Nd1 {[%emt 0:03:31]} O-O {[%emt 0:03:02]} 21. c3 {[%emt 0:04:10]} Rc8 {[%emt 0:02:46]} 22. Kb1 {[%emt 0:04:38]} e4 {[%emt 0:10:33]} 23. Nf2 {[%emt 0:11:43]} 0-1

[Event "55th Rubinstein Memorial-A 2019"]
[Site "Polanica-Zdroj"]
[Date "2019.08.23"]
[Round "7.15"]
[White "Luberanski, Jakub"]
[Black "Niedbala, Bartlomiej"]
[Result "1/2-1/2"]
[ECO "B06"]
[WhiteElo "1996"]
[BlackElo "2169"]
[Annotator "NA"]
[PlyCount "150"]
[EventDate "2019.08.17"]
[EventType "swiss"]
[EventCountry "POL"]
[SourceTitle "playchess.com"]
[Source "ChessBase"]
[SourceQuality "1"]
[TimeControl "40/5400+30:1800+30"]

1. d4 {[%emt 0:00:00]} g6 {[%emt 0:01:31]} 2. e4 {[%emt 0:00:00]} Bg7 {[%emt 0:00:04]} 3. Nc3 {[%emt 0:00:00]} a6 {[%emt 0:00:03]} 4. f4 {[%emt 0:00:52]} d6 {[%emt 0:00:24]} 5. Nf3 {[%emt 0:00:59]} b5 {[%emt 0:00:04]} 6. e5 {[%emt 0:06:06]} Nd7 {[%emt 0:06:24]} 7. Bd3 {[%emt 0:02:23]} c5 {[%emt 0:00:44]} 8. Qe2 {[%emt 0:20:53]} cxd4 {[%emt 0:04:55]} 9. Ne4 {[%emt 0:01:27]} Nh6 {[%emt 0:19:15]} 10. O-O {[%emt 0:06:41]} O-O {[%emt 0:06:28]} 11. a4 {[%emt 0:02:52]} b4 {[%emt 0:07:51]} 12. exd6 {[%emt 0:07:45]} Nf5 {[%emt 0:03:17]} 13. Bd2 {[%emt 0:09:18]} exd6 {[%emt 0:02:32]} 14. Bxb4 {[%emt 0:01:12]} Qb6 {[%emt 0:03:22]} 15. Bd2 {[%emt 0:02:26]} Re8 {[%emt 0:02:39]} 16. Qf2 {[%emt 0:03:51]} Bb7 {[%emt 0:05:24]} 17. a5 {[%emt 0:01:33]} Qc7 {[%emt 0:00:54]} 18. Rae1 {[%emt 0:02:57]} Ne3 {[%emt 0:07:39]} 19. Bxe3 {[%emt 0:01:47]} dxe3 {[%emt 0:00:02]} 20. Rxe3 {[%emt 0:00:05]} d5 {[%emt 0:02:34]} 21. Ng3 {[%emt 0:06:29]} Qxf4 {[%emt 0:01:28]} 22. Rxe8+ {[%emt 0:00:17]} Rxe8 {[%emt 0:00:01]} 23. Qa7 {[%emt 0:01:37]} Qe3+ {[%emt 0:03:23]} 24. Qxe3 {[%emt 0:00:06]} Rxe3 {[%emt 0:00:02]} 25. Kf2 {[%emt 0:00:39]} Re8 {[%emt 0:01:29]} 26. c3 {[%emt 0:08:31]} Nc5 {[%emt 0:01:46]} 27. Bc2 {[%emt 0:00:07]} f5 {[%emt 0:01:57]} 28. Rd1 {[%emt 0:01:34]} Bf6 {[%emt 0:03:48]} 29. Ne2 {[%emt 0:01:21]} Ne4+ {[%emt 0:02:14]} 30. Kf1 {[%emt 0:00:10]} g5 {[%emt 0:02:49]} 31. Bb3 {[%emt 0:01:58]} Rd8 {[%emt 0:00:12]} 32. Ng3 {[%emt 0:01:50]} Nc5 {[%emt 0:01:29]} 33. Ba2 {[%emt 0:00:58]} f4 {[%emt 0:01:09]} 34. Nf5 {[%emt 0:02:31]} Kf8 {[%emt 0:03:04]} 35. N3d4 {[%emt 0:02:17]} Rd7 {[%emt 0:00:51]} 36. Re1 {[%emt 0:02:09]} Ne4 {[%emt 0:00:22]} 37. Ne6+ {[%emt 0:00:32]} Kf7 {[%emt 0:01:32]} 38. Nfd4 {[%emt 0:00:29]} Bxd4 {[%emt 0:02:35]} 39. Nxd4 {[%emt 0:00:09]} Kf6 {[%emt 0:00:20]} 40. Re2 {[%emt 0:00:00]} Rc7 {[%emt 0:00:00]} 41. Bb1 {[%emt 0:14:20]} Rc5 {[%emt 0:05:23]} 42. Nb3 {[%emt 0:00:28]} Rb5 {[%emt 0:04:02]} 43. Bc2 {[%emt 0:00:09]} h6 {[%emt 0:01:52]} 44. Ke1 {[%emt 0:05:37]} Nc5 {[%emt 0:01:11]} 45. Nxc5 {[%emt 0:00:28]} Rxc5 {[%emt 0:00:03]} 46. Re8 {[%emt 0:00:17]} d4 {[%emt 0:02:11]} 47. Rh8 {[%emt 0:06:57]} dxc3 {[%emt 0:01:22]} 48. Rxh6+ {[%emt 0:00:11]} Ke5 {[%emt 0:00:02]} 49. bxc3 {[%emt 0:00:39]} Rxc3 {[%emt 0:02:40]} 50. Kd2 {[%emt 0:00:57]} Rc5 {[%emt 0:00:01]} 51. h4 {[%emt 0:01:32]} gxh4 {[%emt 0:02:45]} 52. Rh5+ {[%emt 0:00:05]} Kd6 {[%emt 0:00:15]} 53. Rh6+ {[%emt 0:00:17]} Kc7 {[%emt 0:00:31]} 54. Rh7+ {[%emt 0:00:34]} Kb8 {[%emt 0:00:04]} 55. Rxh4 {[%emt 0:00:10]} Bxg2 {[%emt 0:02:21]} 56. Rxf4 {[%emt 0:00:05]} Rxa5 {[%emt 0:00:05]} 57. Rf8+ {[%emt 0:01:11]} Kc7 {[%emt 0:00:38]} 58. Rf7+ {[%emt 0:00:06]} Kd6 {[%emt 0:00:23]} 59. Rf6+ {[%emt 0:00:12]} Ke7 {[%emt 0:00:18]} 60. Rb6 {[%emt 0:00:07]} Bf1 {[%emt 0:01:09]} 61. Kc3 {[%emt 0:01:08]} Bb5 {[%emt 0:01:35]} 62. Kb2 {[%emt 0:00:10]} Kd7 {[%emt 0:00:10]} 63. Rh6 {[%emt 0:00:45]} Kc7 {[%emt 0:01:51]} 64. Rh5 {[%emt 0:00:24]} Kb6 {[%emt 0:00:36]} 65. Rg5 {[%emt 0:00:07]} Bc4 {[%emt 0:00:55]} 66. Rxa5 {[%emt 0:00:04]} Kxa5 {[%emt 0:00:03]} 67. Ka1 {[%emt 0:00:09]} Kb4 {[%emt 0:00:02]} 68. Bd1 {[%emt 0:00:07]} a5 {[%emt 0:00:00]} 69. Bc2 {[%emt 0:00:06]} Kc3 {[%emt 0:00:14]} 70. Bd1 {[%emt 0:00:11]} Bb5 {[%emt 0:00:14]} 71. Ka2 {[%emt 0:00:08]} Bc4+ {[%emt 0:00:13]} 72. Ka1 {[%emt 0:00:04]} Kd2 {[%emt 0:00:03]} 73. Ba4 {[%emt 0:00:05]} Kc1 {[%emt 0:00:03]} 74. Be8 {[%emt 0:00:12]} Bf7 {[%emt 0:00:22]} 75. Bxf7 {[%emt 0:00:05]} a4 {[%emt 0:00:02]} 1/2-1/2

[Event "55th Rubinstein Memorial-A 2019"]
[Site "Polanica-Zdroj"]
[Date "2019.08.23"]
[Round "7.16"]
[White "Skurniak, Szymon"]
[Black "Vanduyfhuys, Daria"]
[Result "1-0"]
[ECO "B33"]
[WhiteElo "1962"]
[BlackElo "2160"]
[Annotator "NA"]
[PlyCount "129"]
[EventDate "2019.08.17"]
[EventType "swiss"]
[EventCountry "POL"]
[SourceTitle "playchess.com"]
[Source "ChessBase"]
[SourceQuality "1"]
[TimeControl "40/5400+30:1800+30"]

1. e4 {[%emt 0:00:00]} c5 {[%emt 0:00:00]} 2. Nf3 {[%emt 0:00:00]} Nc6 {[%emt 0:00:00]} 3. d4 {[%emt 0:00:00]} cxd4 {[%emt 0:00:00]} 4. Nxd4 {[%emt 0:00:02]} Nf6 {[%emt 0:00:02]} 5. Nc3 {[%emt 0:00:43]} e5 {[%emt 0:00:06]} 6. Ndb5 {[%emt 0:00:18]} d6 {[%emt 0:00:07]} 7. Bg5 {[%emt 0:00:04]} a6 {[%emt 0:00:08]} 8. Na3 {[%emt 0:00:50]} b5 {[%emt 0:00:08]} 9. Nd5 {[%emt 0:00:05]} Be7 {[%emt 0:00:08]} 10. Bxf6 {[%emt 0:00:04]} Bxf6 {[%emt 0:00:05]} 11. c3 {[%emt 0:01:13]} Ne7 {[%emt 0:00:10]} 12. Nxf6+ {[%emt 0:00:21]} gxf6 {[%emt 0:00:05]} 13. c4 {[%emt 0:01:08]} b4 {[%emt 0:06:18]} 14. Qa4+ {[%emt 0:02:56]} Bd7 {[%emt 0:02:48]} 15. Qxb4 {[%emt 0:02:14]} Rb8 {[%emt 0:00:11]} 16. Qc3 {[%emt 0:13:52]} Qb6 {[%emt 0:09:24]} 17. b3 {[%emt 0:03:57]} Bc6 {[%emt 0:03:28]} 18. Bd3 {[%emt 0:09:12]} Rg8 {[%emt 0:02:05]} 19. g3 {[%emt 0:12:41]} f5 {[%emt 0:01:36]} 20. c5 {[%emt 0:00:14]} Qxc5 {[%emt 0:00:24]} 21. Qxc5 {[%emt 0:00:07]} dxc5 {[%emt 0:00:06]} 22. Rc1 {[%emt 0:13:48]} fxe4 {[%emt 0:14:33]} 23. Be2 {[%emt 0:00:34]} Rd8 {[%emt 0:00:34]} 24. Rxc5 {[%emt 0:02:01]} Rd5 {[%emt 0:10:45]} 25. Rc2 {[%emt 0:16:07]} Rg6 {[%emt 0:06:41]} 26. Nc4 {[%emt 0:02:54]} Nf5 {[%emt 0:02:30]} 27. Ne3 {[%emt 0:01:00]} Nxe3 {[%emt 0:02:00]} 28. fxe3 {[%emt 0:00:04]} Bb5 {[%emt 0:05:04]} 29. Bc4 {[%emt 0:02:36]} Bxc4 {[%emt 0:00:43]} 30. Rxc4 {[%emt 0:00:11]} Rgd6 {[%emt 0:00:13]} 31. O-O {[%emt 0:00:21]} Rd2 {[%emt 0:02:46]} 32. Rxe4 {[%emt 0:00:19]} f6 {[%emt 0:11:15]} 33. Rf2 {[%emt 0:00:40]} Rxf2 {[%emt 0:00:15]} 34. Kxf2 Rd2+ {[%emt 0:00:06]} 35. Kf3 {[%emt 0:00:07]} Rxa2 {[%emt 0:06:07]} 36. Rh4 {[%emt 0:02:15]} Kf7 {[%emt 0:05:49]} 37. Rxh7+ {[%emt 0:00:05]} Kg6 {[%emt 0:00:04]} 38. Ra7 {[%emt 0:03:09]} Kf5 {[%emt 0:00:53]} 39. g4+ {[%emt 0:02:39]} Kg5 {[%emt 0:01:23]} 40. Kg3 {[%emt 0:00:00]} Ra1 {[%emt 0:00:00]} 41. h4+ {[%emt 0:00:21]} Kg6 {[%emt 0:02:55]} 42. h5+ {[%emt 0:05:35]} Kh6 {[%emt 0:00:47]} 43. Rf7 {[%emt 0:01:39]} Rg1+ {[%emt 0:00:51]} 44. Kh3 {[%emt 0:00:42]} Re1 {[%emt 0:01:22]} 45. Rxf6+ {[%emt 0:00:04]} Kg7 {[%emt 0:00:06]} 46. Rxa6 {[%emt 0:01:27]} Rxe3+ {[%emt 0:00:04]} 47. Kh4 {[%emt 0:00:10]} Rxb3 {[%emt 0:00:05]} 48. Kg5 {[%emt 0:00:03]} e4 {[%emt 0:00:15]} 49. Ra7+ {[%emt 0:01:04]} Kg8 {[%emt 0:00:24]} 50. Re7 {[%emt 0:03:59]} e3 {[%emt 0:01:10]} 51. Kf4 {[%emt 0:01:28]} Rb4+ {[%emt 0:00:09]} 52. Kf3 {[%emt 0:01:28]} e2 {[%emt 0:00:09]} 53. Rxe2 {[%emt 0:00:06]} Kg7 {[%emt 0:00:04]} 54. Re6 {[%emt 0:00:08]} Kf7 {[%emt 0:00:09]} 55. Ra6 {[%emt 0:00:04]} Kg7 {[%emt 0:00:13]} 56. Re6 {[%emt 0:03:55]} Ra4 {[%emt 0:01:09]} 57. Kg3 {[%emt 0:00:50]} Kh7 {[%emt 0:00:31]} 58. Kh4 {[%emt 0:00:34]} Ra5 {[%emt 0:00:05]} 59. Rf6 {[%emt 0:00:09]} Kg7 {[%emt 0:01:06]} 60. Rf5 {[%emt 0:00:30]} Ra6 {[%emt 0:03:13]} 61. Kg5 {[%emt 0:00:52]} Rb6 {[%emt 0:00:06]} 62. Ra5 {[%emt 0:00:04]} Rc6 {[%emt 0:00:08]} 63. Kf5 {[%emt 0:00:25]} Rb6 {[%emt 0:00:12]} 64. Ra7+ {[%emt 0:00:29]} Kh6 {[%emt 0:00:21]} 65. g5+ {[%emt 0:00:07]} 1-0

[Event "55th Rubinstein Memorial-A 2019"]
[Site "Polanica-Zdroj"]
[Date "2019.08.23"]
[Round "7.17"]
[White "Rogacewicz, Mikolaj"]
[Black "Goslawski, Michal"]
[Result "0-1"]
[ECO "E04"]
[WhiteElo "1925"]
[BlackElo "2160"]
[Annotator "NA"]
[PlyCount "80"]
[EventDate "2019.08.17"]
[EventType "swiss"]
[EventCountry "POL"]
[SourceTitle "playchess.com"]
[Source "ChessBase"]
[SourceQuality "1"]
[TimeControl "40/5400+30:1800+30"]

1. d4 {[%emt 0:00:00]} Nf6 {[%emt 0:00:00]} 2. c4 {[%emt 0:00:00]} e6 {[%emt 0:00:00]} 3. g3 {[%emt 0:00:09]} d5 {[%emt 0:00:00]} 4. Nf3 {[%emt 0:00:05]} dxc4 {[%emt 0:00:00]} 5. Bg2 {[%emt 0:00:07]} Bb4+ {[%emt 0:00:01]} 6. Bd2 {[%emt 0:01:47]} a5 {[%emt 0:00:06]} 7. O-O {[%emt 0:02:51]} O-O {[%emt 0:00:06]} 8. Qc2 {[%emt 0:09:18]} Bxd2 {[%emt 0:00:34]} 9. Nbxd2 {[%emt 0:01:15]} b5 {[%emt 0:00:47]} 10. a4 {[%emt 0:21:36]} c6 {[%emt 0:00:20]} 11. b3 {[%emt 0:02:56]} cxb3 {[%emt 0:02:21]} 12. Nxb3 {[%emt 0:00:40]} b4 {[%emt 0:04:10]} 13. Ne5 {[%emt 0:02:40]} Bd7 {[%emt 0:15:25]} 14. Qc5 {[%emt 0:06:59]} Nd5 {[%emt 0:02:09]} 15. Nc4 {[%emt 0:01:51]} Bc8 {[%emt 0:10:19]} 16. Bxd5 {[%emt 0:08:05]} cxd5 {[%emt 0:00:31]} 17. Ncxa5 {[%emt 0:00:31]} Na6 {[%emt 0:01:26]} 18. Qc2 {[%emt 0:03:20]} Ra7 {[%emt 0:01:45]} 19. Rfc1 {[%emt 0:05:26]} Rc7 {[%emt 0:04:49]} 20. Qd3 {[%emt 0:07:23]} Qd6 {[%emt 0:03:17]} 21. Rxc7 {[%emt 0:01:48]} Nxc7 {[%emt 0:00:48]} 22. Nc5 {[%emt 0:00:27]} e5 {[%emt 0:01:50]} 23. Nab3 {[%emt 0:05:03]} e4 {[%emt 0:01:40]} 24. Qd2 {[%emt 0:00:37]} Bg4 {[%emt 0:07:37]} 25. Ra2 {[%emt 0:04:14]} Rb8 {[%emt 0:02:36]} 26. Kg2 {[%emt 0:02:29]} h6 {[%emt 0:02:38]} 27. f4 {[%emt 0:01:24]} exf3+ {[%emt 0:01:39]} 28. exf3 {[%emt 0:00:11]} Bc8 {[%emt 0:06:40]} 29. Ra1 {[%emt 0:01:58]} Ba6 {[%emt 0:01:29]} 30. Re1 {[%emt 0:01:38]} Bc4 {[%emt 0:00:28]} 31. Re3 {[%emt 0:01:38]} Na6 {[%emt 0:02:35]} 32. Nxa6 {[%emt 0:01:24]} Bxa6 {[%emt 0:02:49]} 33. Nc5 {[%emt 0:01:25]} Bc4 {[%emt 0:00:42]} 34. Qb2 {[%emt 0:00:45]} h5 {[%emt 0:02:18]} 35. h4 {[%emt 0:00:41]} Qc7 {[%emt 0:04:13]} 36. Re5 {[%emt 0:01:38]} b3 {[%emt 0:02:26]} 37. Kf2 {[%emt 0:02:41]} Qa5 {[%emt 0:02:26]} 38. f4 {[%emt 0:00:57]} Rc8 {[%emt 0:02:19]} 39. Rxh5 {[%emt 0:00:44]} f6 {[%emt 0:04:26]} 40. Qb1 {[%emt 0:00:00]} Qd2+ {[%emt 0:00:00]} 0-1

[Event "55th Rubinstein Memorial-A 2019"]
[Site "Polanica-Zdroj"]
[Date "2019.08.23"]
[Round "7.18"]
[White "Wisniewski, Michal"]
[Black "Adamczyk, Zuzanna"]
[Result "1-0"]
[ECO "A14"]
[WhiteElo "2130"]
[BlackElo "1911"]
[Annotator "NA"]
[PlyCount "67"]
[EventDate "2019.08.17"]
[EventType "swiss"]
[EventCountry "POL"]
[SourceTitle "playchess.com"]
[Source "ChessBase"]
[SourceQuality "1"]
[TimeControl "40/5400+30:1800+30"]

1. Nf3 {[%emt 0:00:00]} Nf6 {[%emt 0:00:00]} 2. c4 {[%emt 0:00:00]} e6 {[%emt 0:00:34]} 3. g3 {[%emt 0:00:04]} d5 {[%emt 0:01:16]} 4. Bg2 {[%emt 0:00:06]} Be7 {[%emt 0:00:34]} 5. O-O {[%emt 0:00:09]} O-O {[%emt 0:00:23]} 6. b3 {[%emt 0:00:11]} b6 {[%emt 0:04:22]} 7. Bb2 {[%emt 0:00:08]} Bb7 {[%emt 0:00:25]} 8. e3 {[%emt 0:00:14]} c5 {[%emt 0:02:54]} 9. Nc3 {[%emt 0:00:07]} Nbd7 {[%emt 0:02:41]} 10. Qe2 {[%emt 0:07:58]} a6 {[%emt 0:14:55]} 11. Rac1 {[%emt 0:01:53]} Ra7 {[%emt 0:07:42]} 12. Rfd1 {[%emt 0:09:53]} Ne4 {[%emt 0:05:44]} 13. cxd5 {[%emt 0:20:51]} exd5 {[%emt 0:01:34]} 14. d4 {[%emt 0:00:39]} Ndf6 {[%emt 0:13:46]} 15. dxc5 {[%emt 0:03:55]} bxc5 {[%emt 0:07:38]} 16. Na4 {[%emt 0:06:12]} Qa5 {[%emt 0:09:24]} 17. Nd2 {[%emt 0:06:58]} Bc6 {[%emt 0:05:15]} 18. Nxe4 {[%emt 0:02:42]} Nxe4 {[%emt 0:00:48]} 19. Bxe4 {[%emt 0:01:28]} dxe4 {[%emt 0:00:46]} 20. Nxc5 {[%emt 0:06:52]} Bxc5 {[%emt 0:06:29]} 21. Qc4 {[%emt 0:00:05]} Ba3 {[%emt 0:01:09]} 22. Bxa3 {[%emt 0:00:06]} Qxa3 {[%emt 0:00:46]} 23. Qxc6 {[%emt 0:00:05]} Qxa2 {[%emt 0:00:36]} 24. b4 {[%emt 0:00:04]} f5 {[%emt 0:02:39]} 25. Rd7 {[%emt 0:01:20]} Rxd7 {[%emt 0:01:00]} 26. Qxd7 {[%emt 0:00:06]} Qf7 {[%emt 0:02:19]} 27. Qd6 {[%emt 0:00:05]} Qf6 {[%emt 0:00:41]} 28. Qd5+ {[%emt 0:00:04]} Qf7 {[%emt 0:00:31]} 29. Qa5 {[%emt 0:00:12]} Qb3 {[%emt 0:02:25]} 30. Qxa6 {[%emt 0:00:45]} Qxb4 {[%emt 0:01:10]} 31. Qe6+ {[%emt 0:00:05]} Kh8 {[%emt 0:00:12]} 32. Rc8 {[%emt 0:00:03]} g6 {[%emt 0:00:53]} 33. Rc7 {[%emt 0:00:45]} Qe1+ {[%emt 0:04:14]} 34. Kg2 {[%emt 0:00:04]} 1-0

[Event "55th Rubinstein Memorial-A 2019"]
[Site "Polanica-Zdroj"]
[Date "2019.08.23"]
[Round "7.19"]
[White "Malicka, Maria"]
[Black "Stachecki, Mikolaj"]
[Result "1/2-1/2"]
[ECO "B66"]
[WhiteElo "2062"]
[BlackElo "1765"]
[Annotator "NA"]
[PlyCount "79"]
[EventDate "2019.08.17"]
[EventType "swiss"]
[EventCountry "POL"]
[SourceTitle "playchess.com"]
[Source "ChessBase"]
[SourceQuality "1"]
[TimeControl "40/5400+30:1800+30"]

1. e4 {[%emt 0:00:00]} c5 {[%emt 0:00:00]} 2. Nf3 {[%emt 0:00:00]} d6 {[%emt 0:00:00]} 3. d4 {[%emt 0:00:00]} cxd4 {[%emt 0:00:02]} 4. Nxd4 {[%emt 0:00:00]} Nf6 {[%emt 0:00:19]} 5. Nc3 {[%emt 0:00:00]} Nc6 {[%emt 0:00:06]} 6. Bg5 {[%emt 0:00:00]} e6 {[%emt 0:00:12]} 7. Qd2 {[%emt 0:00:00]} a6 {[%emt 0:00:07]} 8. Nxc6 {[%emt 0:00:00]} bxc6 {[%emt 0:00:08]} 9. O-O-O {[%emt 0:00:01]} Be7 {[%emt 0:01:46]} 10. Bxf6 {[%emt 0:00:14]} gxf6 {[%emt 0:00:06]} 11. Bc4 {[%emt 0:00:20]} Bb7 {[%emt 0:00:40]} 12. Rhe1 {[%emt 0:02:22]} Qc7 {[%emt 0:01:02]} 13. f4 {[%emt 0:05:35]} d5 {[%emt 0:05:49]} 14. Bb3 {[%emt 0:03:06]} O-O-O {[%emt 0:00:20]} 15. exd5 {[%emt 0:08:03]} cxd5 {[%emt 0:00:33]} 16. f5 {[%emt 0:03:41]} d4 {[%emt 0:00:32]} 17. Ne2 {[%emt 0:05:26]} d3 {[%emt 0:23:44]} 18. Nc3 {[%emt 0:01:41]} Bd6 {[%emt 0:03:29]} 19. Rf1 {[%emt 0:10:25]} dxc2 {[%emt 0:01:16]} 20. Qxc2 {[%emt 0:00:13]} Bf4+ {[%emt 0:10:07]} 21. Kb1 {[%emt 0:00:05]} e5 {[%emt 0:06:36]} 22. g3 {[%emt 0:02:32]} Bh6 {[%emt 0:00:14]} 23. Qe2 {[%emt 0:02:47]} Rxd1+ {[%emt 0:04:03]} 24. Rxd1 {[%emt 0:00:17]} Rd8 {[%emt 0:00:06]} 25. Rxd8+ {[%emt 0:02:38]} Kxd8 {[%emt 0:04:28]} 26. Qh5 {[%emt 0:08:30]} Bd2 {[%emt 0:14:23]} 27. Qg4 {[%emt 0:20:30]} Qd7 {[%emt 0:06:50]} 28. Qg8+ {[%emt 0:11:04]} Kc7 {[%emt 0:00:08]} 29. Qxf7 {[%emt 0:00:16]} Qxf7 {[%emt 0:00:18]} 30. Bxf7 {[%emt 0:00:03]} Bxc3 {[%emt 0:00:12]} 31. bxc3 {[%emt 0:00:01]} Be4+ {[%emt 0:00:11]} 32. Kc1 {[%emt 0:00:02]} Bxf5 {[%emt 0:00:18]} 33. Kd2 {[%emt 0:00:08]} Kd6 {[%emt 0:05:46]} 34. Bc4 {[%emt 0:01:36]} Bc8 {[%emt 0:05:47]} 35. Ke3 {[%emt 0:00:49]} f5 {[%emt 0:00:57]} 36. h3 {[%emt 0:02:17]} a5 {[%emt 0:01:43]} 37. Bd3 {[%emt 0:01:43]} Be6 {[%emt 0:03:40]} 38. a3 {[%emt 0:01:02]} Kc5 {[%emt 0:00:17]} 39. Be2 {[%emt 0:03:03]} f4+ {[%emt 0:01:38]} 40. Ke4 1/2-1/2